Cogmind - Beta 9.3 @@@ ROGUE MODE // 2020.01.01 @ 01:18:59 // Winter2019/RPGLIKE Player: mrbill82 Result: Destroyed by as-31498 with Assembled Maul Performance ------------- Evolutions (1) 500 Regions Visited (3) 600 Robots Destroyed (68) 340 Value Destroyed (1601) 1601 Prototype IDs (6) 120 Alien Tech Used (0) 0 Bonus (0) 0 TOTAL SCORE: 3161 Bonus ------- None Cogmind --------- Core Integrity 0/1100 Matter 300/300 Energy 430/430 System Corruption 0% Temperature Cool (0) Movement Walking (120) Location -9/Mines Parts ------- > --- POWER (2) -------- Improved Ion Engine Reinforced Ion Engine > --- PROPULSION (3) --- Aluminum Leg Aluminum Leg Aluminum Leg > --- UTILITY (5) ------ Cooling System Structural Scanner Transport Network Coupler Improved Targeting Computer > --- WEAPON (3) ------- Advanced Beam Cannon > --- INVENTORY (2) ---- Protomatter-20 Aluminum Leg Peak State ------------ > --- POWER ------------ Improved Ion Engine Reinforced Ion Engine > --- PROPULSION ------- Aluminum Leg Aluminum Leg Aluminum Leg > --- UTILITY ---------- Cooling System Structural Scanner Transport Network Coupler Improved Targeting Computer Utility Shielding > --- WEAPON ----------- Improved Medium Laser Advanced Beam Cannon Advanced Beam Cannon > --- INVENTORY -------- Protomatter [Rating: 23] Favorites ----------- Power Ion Engine Engine Ion Engine Propulsion Aluminum Leg Leg Aluminum Leg Utility Structural Scanner Device Structural Scanner Processor Improved Targeting Computer Protection Utility Shielding Weapon Advanced Beam Cannon Energy Gun Improved Medium Laser Energy Cannon Advanced Beam Cannon Ballistic Gun Assault Rifle Launcher Grenade Launcher Build | -11 -10 -9 -9 ------- Run | Scr Mat Mat Min Slots Evolved 9 | 3 . 6 . Power 1 | . . 1 . Propulsion 2 | 1 . 1 . Utility 4 | 1 . 3 . Weapon 2 | 1 . 1 . Parts Attached 32 | 5 6 17 4 Power 4 | 1 . 2 1 Engine 4 | 1 . 2 1 Core . | . . . . Reactor . | . . . . Propulsion 8 | 2 . 3 3 Treads . | . . . . Leg 8 | 2 . 3 3 Wheel . | . . . . Hover . | . . . . Flight . | . . . . Utility 7 | . 3 4 . Device 3 | . 2 1 . Storage . | . . . . Processor 2 | . 1 1 . Hackware . | . . . . Protection 2 | . . 2 . Artifact . | . . . . Weapon 13 | 2 3 8 . Energy Gun 3 | . . 3 . Energy Cannon 5 | . 1 4 . Ballistic Gun 2 | 2 . . . Ballistic Cannon . | . . . . Launcher 3 | . 2 1 . Special Weapon . | . . . . Impact Weapon . | . . . . Slashing Weapon . | . . . . Piercing Weapon . | . . . . Special Melee Weapon . | . . . . Unidentified Prototypes 1 | . . 1 . Parts Lost 3 | . . . 3 Power . | . . . . Propulsion . | . . . . Utility 1 | . . . 1 Weapon 2 | . . . 2 Highest Loss Streak 2 | . . . 2 Average Slot Usage (%) 95 | . 94 94 96 Engine 13 | . 14 13 15 Leg 25 | . 28 24 23 Device 16 | . 21 14 15 Processor 9 | . 1 13 15 Protection 1 | . . 1 7 Energy Gun 3 | . . 4 6 Energy Cannon 9 | . 1 15 12 Ballistic Gun 5 | . 16 . . Launcher 6 | . 10 5 . Naked Turns . | . . . . Heaviest Build 32 | 8 14 32 32 Greatest Support 30 | 20 20 30 30 Greatest Overweight (x) 1 | . . 1 1 Average Overweight (x) . | . . . . Largest Inventory Capacity 2 | 2 2 2 2 Average Capacity 2 | 2 2 2 2 Most Carried 2 | 1 2 2 2 Average Carried 1 | . 1 1 1 Final Capacity 2 | 2 2 2 2 Final Carried 2 | 1 2 2 2 Class Distribution -------------------- 57% | Mutant 16% | Scavenger-Gunner 13% | Scavenger-Mutant 12% | Gunner Dominant Class ---------------- Mutant | -10/Materials Mutant | -9/Materials Scavenger-Mutant | -9/Mines Resources | -11 -10 -9 -9 ----------- Run | Scr Mat Mat Min Matter Collected 870 | 209 312 299 50 Remotely . | . . . . Salvage Created 1522 | . 398 756 368 Parts 126 | . 35 61 30 Haulers Intercepted 5 | . 1 4 . Recyclers Shooed . | . . . . Parts Field Recycled . | . . . . Retrieved Matter . | . . . . Parts Self-Destructed . | . . . . Prevented . | . . . . Kills | -11 -10 -9 -9 ------- Run | Scr Mat Mat Min Combat Hostiles Destroyed 47 | . 12 20 15 Guns 14 | . 4 4 6 Cannons 26 | . 1 16 9 AOE 7 | . 7 . . Classes Destroyed 15 | . 7 4 4 Worker 5 | . 2 2 1 Builder 5 | . 4 . 1 Tunneler 1 | . . . 1 Hauler 5 | . 1 4 . Recycler 1 | . . . 1 Mechanic 1 | . . 1 . Operator 1 | . 1 . . Watcher 2 | . 1 1 . Swarmer 11 | . 3 3 5 Grunt 26 | . 9 12 5 Brawler 3 | . . 2 1 Duelist 1 | . . 1 . Sentry 2 | . . 2 . Demolisher 2 | . . . 2 Assembled 2 | . . . 2 Best Kill Streak 12 | . 6 7 12 Combat Bots Only 7 | . 3 7 6 Max Kills in Single Turn 4 | . 2 4 2 Gunslinging . | . . . . Exploded 2 | . 2 . . Melee . | . . . . Uniques/NPCs Destroyed . | . . . . Combat | -11 -10 -9 -9 -------- Run | Scr Mat Mat Min Damage Taken 3122 | . 319 652 2151 Core 2477 | . 250 522 1705 Absorbed by Shields . | . . . . Redirected to Core 1978 | . 223 396 1359 Core Remaining (%) 95 | 100 91 . . Volleys Fired 127 | . 32 43 52 Largest 3 | . 2 3 3 Hottest 192 | . 98 192 192 Shots Fired 269 | . 57 95 117 Gun 101 | . 36 21 44 Cannon 141 | . 4 64 73 Launcher 27 | . 17 10 . Special . | . . . . Kinetic 36 | . 36 . . Thermal 206 | . 4 85 117 Explosive 27 | . 17 10 . Electromagnetic . | . . . . Robot Hit Streak 16 | . 9 16 8 Robot Miss Streak 3 | . 3 2 3 Penetration Max . | . . . . Secondary Targets . | . . . . Shots Hit Robots 136 | . 28 55 53 Core Hits 91 | . 33 35 23 Critical Hits 9 | . 1 1 7 Critical Kills 1 | . . . 1 Critical Parts Destroyed 8 | . 1 1 6 Melee Attacks . | . . . . Impact . | . . . . Slashing . | . . . . Piercing . | . . . . Sneak Attacks . | . . . . Combat Hostiles . | . . . . Follow-up Attacks . | . . . . Damage Inflicted 3863 | . 1250 1457 1156 Guns 930 | . 219 317 394 Cannons 1499 | . 41 696 762 Explosions 1418 | . 977 441 . Melee . | . . . . Ramming 16 | . 13 3 . Kinetic 219 | . 219 . . Thermal 2210 | . 41 1013 1156 Explosive 1418 | . 977 441 . Electromagnetic . | . . . . Impact . | . . . . Slashing . | . . . . Piercing . | . . . . Highest Corruption 1 | . 1 . . Average Corruption 1 | . 1 . . Corruption Purged . | . . . . Overload Shots . | . . . . Overflow Damage 20 | . 4 14 2 Projectiles 2 | . . . 2 Explosions 18 | . 4 14 . Melee . | . . . . Knockbacks . | . . . . Impact . | . . . . Kinetic . | . . . . Secondary . | . . . . Self-Inflicted Damage 120 | . 53 67 . Shots 5 | . 2 3 . Rammed 4 | . 3 1 . Targets Rammed 6 | . 4 2 . Kicked 2 | . 1 1 . Crushed . | . . . . Highest Temperature 673 | . 72 459 673 Average Temperature 147 | . 29 113 197 Received Heat Transfer 483 | . 111 201 171 Effects 30 | . . 6 24 Shutdowns 12 | . . 4 8 Energy Bleed 5 | . . 2 3 Interference 4 | . . . 4 Matter Decay 1 | . . . 1 Damage (major) 7 | . . . 7 Damage (core) 1 | . . . 1 Siege Activations . | . . . . Robots Corrupted . | . . . . Combat Hostiles . | . . . . Parts Fried . | . . . . Impact Corruptions . | . . . . Robots Melted . | . . . . Combat Hostiles . | . . . . Parts Melted 8 | . . 2 6 Heat Transferred 4292 | . 74 1998 2220 Parts Sabotaged . | . . . . Parts Stolen . | . . . . Parts Stripped . | . . . . Power Chain Reactions . | . . . . Missiles Intercepted . | . . . . Alert | -11 -10 -9 -9 ------- Run | Scr Mat Mat Min Peak Influence 392 | . 182 392 391 Average Influence 161 | . 68 204 262 Maximum Alert Level 1 | . . 1 1 Low Security (%) 70 | 100 100 62 33 Level 1 29 | . . 37 66 Level 2 . | . . . . Level 3 . | . . . . Level 4 . | . . . . Level 5 . | . . . . High Security . | . . . . Max Security . | . . . . Squads Dispatched 5 | . 2 3 . Investigation 3 | . 1 2 . Extermination . | . . . . Reinforcement 2 | . 1 1 . Assault . | . . . . Garrison . | . . . . Intercept . | . . . . Construction Impeded . | . . . . Haulers Reinforced . | . . . . Stealth | -11 -10 -9 -9 --------- Run | Scr Mat Mat Min Distress Signals 6 | . 4 2 . Communications Jammed . | . . . . Distress Signals . | . . . . Times Spotted 86 | . 21 27 38 Peak Tracking Total 9 | . 4 8 9 Tactical Retreats 9 | . . 2 7 Traps | -11 -10 -9 -9 ------- Run | Scr Mat Mat Min Traps Triggered 3 | . 1 2 . Indirectly . | . . . . Trap Hack Attempts . | . . . . Triggered . | . . . . Disarmed 10 | . 4 6 . Reprogrammed . | . . . . Reused . | . . . . Traps Extracted . | . . . . Installed . | . . . . Triggered . | . . . . Machines | -11 -10 -9 -9 ---------- Run | Scr Mat Mat Min Machines Disabled 9 | . 2 5 2 Max in Single Turn 2 | . 2 1 1 Machines Sabotaged . | . . . . Garrisons Compromised . | . . . . Overloaded Fab Kills . | . . . . Fab Network Shutdowns . | . . . . Hacking | -11 -10 -9 -9 --------- Run | Scr Mat Mat Min Machines Accessed 14 | . 8 5 1 Terminals 11 | . 6 4 1 Fabricators . | . . . . Repair Stations . | . . . . Recycling Units 2 | . 2 . . Scanalyzers 1 | . . 1 . Garrison Access . | . . . . Total Hacks 41 | . 25 14 2 Successful 31 | . 19 10 2 Failed 10 | . 6 4 . Catastrophic 1 | . 1 . . Database Lockouts . | . . . . Manual . | . . . . Terminals 36 | . 22 12 2 Fabricators . | . . . . Repair Stations . | . . . . Recycling Units 3 | . 3 . . Scanalyzers 2 | . . 2 . Garrison Access . | . . . . Terminal Hacks 26 | . 16 8 2 Record 13 | . 9 3 1 Prototype ID Bank 3 | . 1 2 . Emergency Access Points 1 | . 1 . . Locate Traps 3 | . 2 1 . Disarm Traps 2 | . 1 1 . Dispatch Records 1 | . . . 1 Transport Status 1 | . 1 . . Investigation Status 1 | . 1 . . Zone Layout 1 | . . 1 . Fabricator Hacks . | . . . . Repair Station Hacks . | . . . . Recycling Unit Hacks 3 | . 3 . . Report Inventory 2 | . 2 . . Retrieve Components 1 | . 1 . . Scanalyzer 2 | . . 2 . Insert Component 1 | . . 1 . Analyze 1 | . . 1 . Garrison Access Hacks . | . . . . Unauthorized Hacks . | . . . . Terminals . | . . . . Fabricators . | . . . . Repair Stations . | . . . . Recycling Units . | . . . . Scanalyzers . | . . . . Garrison Access . | . . . . Data Cores Recovered . | . . . . Used . | . . . . Hacking Detections 11 | . 8 3 . Full Trace Events 2 | . 1 1 . Feedback Events . | . . . . Feedback Blocked . | . . . . Robot Schematics Acquired . | . . . . Robots Built . | . . . . Matter . | . . . . Time . | . . . . Total Robot Build Rating . | . . . . Part Schematics Acquired 1 | . . 1 . Parts Built . | . . . . Matter . | . . . . Time . | . . . . Total Part Build Rating . | . . . . Parts Repaired . | . . . . Time . | . . . . Parts Recycled . | . . . . Recycled Matter . | . . . . Retrieved Matter . | . . . . Retrieved Components 2 | . 2 . . Parts Scanalyzed 1 | . . 1 . Part Schematics Acquired 1 | . . 1 . Parts Damaged . | . . . . Bothacking | -11 -10 -9 -9 ------------ Run | Scr Mat Mat Min Used RIF Installer . | . . . . Robots Hacked . | . . . . Non-combat . | . . . . Combat . | . . . . Robot Hacks Applied . | . . . . Relay Couplers Released . | . . . . Robots Rewired . | . . . . Allies Hacked . | . . . . Hacks Repelled . | . . . . Allies | -11 -10 -9 -9 -------- Run | Scr Mat Mat Min Total Allies 3 | . . . 3 Largest Group 3 | . . . 3 Highest-Rated Group 40 | . . . 40 Highest-Rated Ally 16 | . . . 16 Total Orders 1 | . . . 1 GUARD 1 | . . . 1 Ally Attacks 5 | . . . 5 Total Damage 28 | . . . 28 Kills 1 | . . . 1 Allies Corrupted . | . . . . Allies Melted . | . . . . Intel | -11 -10 -9 -9 ------- Run | Scr Mat Mat Min Robot Analysis Total . | . . . . Derelict Logs Recovered 1 | . . . 1 Drone Launches . | . . . . Drone Recoveries . | . . . . Exploration | -11 -10 -9 -9 ------------- Run | Scr Mat Mat Min Turns Passed 3087 | 94 1099 1263 631 Spaces Moved 2055 | 73 820 839 323 Core 4 | 4 . . . Treads . | . . . . Legs 2051 | 69 820 839 323 Wheels . | . . . . Hover . | . . . . Flight . | . . . . Fastest Speed 50 | 50 120 120 120 Average Speed 124 | 116 120 125 137 Slowest Speed 150 | 120 120 150 150 Overloaded Moves . | . . . . Propulsion Burnouts . | . . . . Robots Hopped . | . . . . Cave-ins Triggered . | . . . . Exploration Rate (%) 55 | 4 94 55 68 Regions Visited 3 Branch Regions 1 Pre-discovered Areas . | . . . . Known Exits Taken . | . . . . Unknown Exits Taken 3 | 1 1 1 . Scrap Searched . | . . . . Spaces Dug 10 | . 10 . . Terrain Destroyed 145 | . 102 42 1 Melee . | . . . . Projectile 1 | . . . 1 AOE 144 | . 102 42 . Actions | -11 -10 -9 -9 --------- Run | Scr Mat Mat Min Total 2340 | 79 878 972 411 Wait 31 | 1 3 25 2 Move 2052 | 72 819 838 323 Hop . | . . . . Pick Up 8 | 1 1 6 . Fast Attach 19 | 5 5 9 . Attach 4 | . . 4 . Detach 1 | . . 1 . Swap 9 | . 1 4 4 Drop 21 | . 4 13 4 Fire 127 | . 32 43 52 Melee . | . . . . Ram . | . . . . Kick 6 | . 4 2 . Crush . | . . . . Escape Stasis . | . . . . Rewire . | . . . . Trap . | . . . . Miscellaneous 62 | . 9 27 26 Route ------- -11/Scrapyard -10/Materials (discovered 5 exits: *Mat x3 / [*Min x2]) -9/Materials (discovered 3 exits: [*Mat x2] / *Min) -9/Mines (discovered 1 exit: [*Mat]) History --------- Turn | Location | Event 1 | -11/Scrapyard | Upgraded with Propulsion slot (x1) 1 | -11/Scrapyard | Upgraded with Utility slot (x1) 1 | -11/Scrapyard | Upgraded with Weapon slot (x1) 30 | -11/Scrapyard | Discovered new exit (range 14) 95 | -11/Scrapyard | Entered Materials 121 | -10/Materials | Discovered new exit (range 8) 169 | -10/Materials | Discovered new exit (range 16) 314 | -10/Materials | Build established: Mutant 378 | -10/Materials | Discovered new exit (range 15) 613 | -10/Materials | Discovered new exit (range 9) 1050 | -10/Materials | Reached level 2 1154 | -10/Materials | Discovered new exit (range 15) 1194 | -10/Materials | Entered another Materials area 1196 | -9/Materials | Reached level 3 1435 | -9/Materials | Discovered new exit (range 11) 1599 | -9/Materials | Reached level 4 1768 | -9/Materials | Upgraded with Power slot (x1) 1768 | -9/Materials | Upgraded with Propulsion slot (x1) 1768 | -9/Materials | Upgraded with Utility slot (x2) 1768 | -9/Materials | Upgraded with Weapon slot (x1) 1969 | -9/Materials | Discovered new exit (range 12) 2080 | -9/Materials | Build established: Gunner 2171 | -9/Materials | Destroyed 7 combat bots 2323 | -9/Materials | Reached level 5 2387 | -9/Materials | Upgraded with Utility slot (x1) 2427 | -9/Materials | Discovered new exit (range 17) 2457 | -9/Materials | Entered Mines 2465 | -9/Mines | Build established: Scavenger-Gunner 2611 | -9/Mines | Reached level 6 2681 | -9/Mines | Discovered new exit (range 14) 2959 | -9/Mines | Build established: Scavenger-Mutant 3017 | -9/Mines | Assisted by bots powering up and referring to "LRC-V3" 3032 | -9/Mines | Assembled infested the area 3038 | -9/Mines | Learned location of 1 exit from Proximity Caves 3055 | -9/Mines | Core integrity fell below 50% 3070 | -9/Mines | Core integrity fell below 20% 3088 | -9/Mines | Destroyed by as-31498 with Assembled Maul Last Messages --------------- as-52671 destroyed. as-69221 destroyed. D-53 Grenadier destroyed. A derelict emerges from the shadows. The unstable cave ceiling collapses. D-53 Grenadier destroyed. The unstable cave ceiling collapses. Imp. Medium Laser destroyed. The unstable cave ceiling collapses. as-95935 destroyed. The unstable cave ceiling collapses. Destroyed Asb. Hover Unit. The unstable cave ceiling collapses. as-03307 destroyed. Utility Shielding destroyed. The unstable cave ceiling collapses. Used Protomatter to restore core integrity (+63, depleted) as-31498 suffers critical hit. Destroyed Asb. Hover Unit. as-37551 destroyed. Map ----- +----------------------------------------------------+ | # #???# """ ###############??? | | # ##### """ #????????????? | | ##### ### ###??????????? | | #??##### # #?# #?####?????? | | ### #??????# ########?### ### ##????? | | ??#####??????# #??????????# ## ##???? | | ?????????????# #??????????# #???? | | ?????????????# #??????????# ### #???? | | ?????????????# #???#####??# ### #???? | | ????????????? #???# #??# ## ##??? | | ????????????? #???# #### #??? | | ????????????? ##???# #### #??? | | ?????????????#????## #?# #??? | | ?????????????????## #?# ##??? | | ?????????????????# ### ##???? | | ?????????????????# #????? | | ?????????????????# #????? | | ?????????????????# ##### ##????? | | ?????????????##### # ##?####?????? | | ?????????????# # ##?????????? | | ????????# # =! #?????????? | | ????????# !%= %a ##?????????? | | ?????# =% % aa #?????????? | | ??? * #% #?????????? | | ???? % #a a ##?????????? | | ???? #### # @ ##?????????? | | ????? = ?????## % ##??????????? | | ????? ## ?????????## #???????????? | | ???????## ???????????# % ???????????? | | ????????# ????????????# ??????????? | | ??????????????????????## #?????????? | | ???????????????????????# ?????????? | | ???????????????????????# ####????????? | | ???????????????????????# ##???????????? | | ???????????????????????# #????????????? | | ???????????????????????# #????????????? | | ???????????????????????# ?????????????? | | ??????????????????????? ?????????????? | | ???????????????????????###?????????????? | | ???????????????????????????????????????? | | ???????????????????????????????????????? | | ???????????????????????????????????????? | | ???????????????????????????????????????? | | ???????????????????????????????????????? | | ???????????????????????????????????????? | | ???????????????????????????????????????? | | ???????????????????????????????????????? | | | | | | | +----------------------------------------------------+ Best States ------------- Heat Dissipation 53 Energy Generation 19 Energy Capacity 430 Matter Stores 300 Matter Capacity 300 Sight Range 17 Robot Scan Range 2 Terrain Scan Density 110 Utility Shielding 33 Evasion (%) 40 Targeting Accuracy 6 Item Schematics ----------------- Med. Laser | -9/Materials | Scanalyzed Robot Schematics ------------------ None Fabricated ------------ Nothing Alien Tech Used ----------------- None Achievements -------------- None Challenges ------------ None RPGLIKE | -11 -10 -9 -9 --------- Run | Scr Mat Mat Min Levels Raised 5 | . 1 3 1 XP Earned 11390 | 3000 1790 4450 2150 XP Spent 9000 | 3000 . 6000 . Upgrades 26 | 13 . 13 . Power Slot 1 | . . 1 . Propulsion Slot 2 | 1 . 1 . Utility Slot 4 | 1 . 3 . Weapon Slot 2 | 1 . 1 . Core Integrity 10 | 6 . 4 . Heat Dissipation 1 | . . 1 . Inventory Capacity 2 | 2 . . . Sight Range 1 | . . 1 . Sensor Range 1 | 1 . . . Terrain Scan Density 1 | . . 1 . Ranged Accuracy 1 | 1 . . . Protomatter Created 735 | . 116 369 250 Integrity Restored 1382 | . 195 598 589 Core 1361 | . 174 598 589 Parts 21 | . 21 . . Protomatter Decayed 172 | . . 69 103 Game ------ Seed ThrusterStructuralPlating Manual? 0 Play Time 00:29:22 Cumulative 6.6 hours Start 2020.01.01 @ 00:39:20 End 2020.01.01 @ 01:18:59 Sessions 1 Manual Loads 0 Difficulty Rogue Special Mode Winter2019/RPGLIKE Game No. 14 Rogue 14 Adventurer 0 Explorer 0 Win Type - Total 0 Types 0/0/0/0/0/0/0 Lore% 13 Gallery% 9 Achievement% 8 Wizard Run 0 Options --------- ASCII 0 Keyboard 1 Movement Numpad Keybinds 0 Fullscreen 2 Font 18/X11 Map View 76x50 Tactical HUD 0 Map Filters NONE Filters NONE Steam 1 RUN: 6590633a-30fa-4594-8dcb-ad3a43443ec8